[Event "CCT Chessable Masters Play-In 2025"]
[Site "Online"]
[Date "2025.02.17"]
[Round "3.40"]
[White "Oparin, Grigoriy"]
[Black "Chirila, Ioan-Cristian"]
[Result "1-0"]
[ECO "B20"]
[WhiteElo "2660"]
[BlackElo "2506"]
[PlyCount "77"]
[EventDate "2025.02.13"]
[EventType "swiss"]
[EventCountry "NET"]
[TimeControl "600"]
[WhiteClock "0:03:07"]
[BlackClock "0:01:01"]

1. a3 {[%emt 0:00:06]} g6 {[%emt 0:00:08]} 2. e4 {[%emt 0:00:03]} c5 {[%emt 0:00:03]} 3. Bc4 {[%emt 0:00:06]} Bg7 {[%emt 0:00:05]} 4. d3 {[%emt 0:00:03]} Nc6 {[%emt 0:00:05]} 5. Nc3 {[%emt 0:00:01]} e6 {[%emt 0:00:02]} 6. h4 {[%emt 0:00:01]} Nge7 {[%emt 0:00:08]} 7. Ba2 {[%emt 0:00:08]} d5 {[%emt 0:00:02]} 8. Nge2 {[%emt 0:00:32]} h5 {[%emt 0:01:51]} 9. Bg5 {[%emt 0:00:09]} d4 {[%emt 0:00:35]} 10. Nb1 {[%emt 0:00:02]} f6 {[%emt 0:00:07]} 11. Bf4 {[%emt 0:00:01]} e5 {[%emt 0:00:01]} 12. Bg3 {[%emt 0:00:04]} f5 {[%emt 0:00:06]} 13. f3 {[%emt 0:00:09]} Qd6 {[%emt 0:00:20]} 14. Nd2 {[%emt 0:00:02]} Be6 {[%emt 0:00:01]} 15. Nc4 {[%emt 0:00:51]} Qd7 {[%emt 0:00:22]} 16. a4 {[%emt 0:00:01]} O-O {[%emt 0:00:19]} 17. Qd2 {[%emt 0:00:07]} Kh7 {[%emt 0:00:07]} 18. c3 {[%emt 0:00:26]} Bh6 {[%emt 0:00:33]} 19. Qc2 {[%emt 0:00:01]} fxe4 {[%emt 0:00:01]} 20. fxe4 {[%emt 0:00:00]} Bxc4 {[%emt 0:00:08]} 21. Bxc4 {[%emt 0:00:02]} Qg4 {[%emt 0:00:01]} 22. a5 {[%emt 0:00:28]} Bf4 {[%emt 0:01:12]} 23. Rh3 {[%emt 0:01:00]} dxc3 {[%emt 0:00:14]} 24. bxc3 {[%emt 0:00:02]} b6 {[%emt 0:00:00]} 25. axb6 {[%emt 0:00:58]} axb6 {[%emt 0:00:00]} 26. Rxa8 {[%emt 0:00:01]} Rxa8 {[%emt 0:00:03]} 27. Qb2 {[%emt 0:00:00]} Be3 {[%emt 0:00:24]} 28. Bf2 {[%emt 0:00:31]} Qxg2 {[%emt 0:00:08]} 29. Rxe3 {[%emt 0:00:02]} Rf8 {[%emt 0:00:14]} 30. Ng1 {[%emt 0:00:07]} b5 {[%emt 0:00:28]} 31. Bxb5 {[%emt 0:00:13]} Rb8 {[%emt 0:00:02]} 32. Qb3 {[%emt 0:00:19]} Rf8 {[%emt 0:00:16]} 33. Qa2 {[%emt 0:00:01]} Na5 {[%emt 0:00:22]} 34. Rg3 {[%emt 0:00:07]} Qh2 {[%emt 0:00:01]} 35. Rf3 {[%emt 0:00:05]} Rxf3 {[%emt 0:00:11]} 36. Nxf3 {[%emt 0:00:00]} Qh1+ {[%emt 0:00:01]} 37. Ke2 {[%emt 0:00:01]} Nac6 {[%emt 0:00:09]} 38. Ng5+ {[%emt 0:00:02]} Kh6 {[%emt 0:00:09]} 39. Qf7 {[%emt 0:00:01]} 1-0

[Event "CCT Chessable Masters Play-In 2025"]
[Site "Online"]
[Date "2025.02.17"]
[Round "3.41"]
[White "Eljanov, Pavel"]
[Black "Aditya Mittal"]
[Result "1-0"]
[ECO "D02"]
[WhiteElo "2658"]
[BlackElo "2550"]
[PlyCount "123"]
[EventDate "2025.02.13"]
[EventType "swiss"]
[EventCountry "NET"]
[TimeControl "600"]
[WhiteClock "0:01:27"]
[BlackClock "0:00:04"]

1. d4 {[%emt 0:00:01]} d5 {[%emt 0:00:02]} 2. Nf3 {[%emt 0:00:01]} Nf6 {[%emt 0:00:01]} 3. Bf4 {[%emt 0:00:01]} c5 {[%emt 0:00:01]} 4. e3 {[%emt 0:00:01]} Nc6 {[%emt 0:00:00]} 5. Nbd2 {[%emt 0:00:00]} e6 {[%emt 0:00:02]} 6. c3 {[%emt 0:00:01]} cxd4 {[%emt 0:00:00]} 7. exd4 {[%emt 0:00:01]} Nh5 {[%emt 0:00:00]} 8. Be3 {[%emt 0:00:01]} Bd6 {[%emt 0:00:01]} 9. Bb5 {[%emt 0:00:02]} O-O {[%emt 0:00:21]} 10. O-O {[%emt 0:00:02]} Qb6 {[%emt 0:00:14]} 11. Qb3 {[%emt 0:01:18]} Bd7 {[%emt 0:00:25]} 12. a4 {[%emt 0:00:43]} a6 {[%emt 0:00:37]} 13. Bd3 {[%emt 0:00:11]} Qxb3 {[%emt 0:00:13]} 14. Nxb3 {[%emt 0:00:00]} f5 {[%emt 0:00:11]} 15. Rfe1 {[%emt 0:00:24]} h6 {[%emt 0:00:30]} 16. Bf1 {[%emt 0:00:36]} g5 {[%emt 0:00:09]} 17. Nc5 {[%emt 0:00:24]} Bxc5 {[%emt 0:00:24]} 18. dxc5 {[%emt 0:00:01]} e5 {[%emt 0:00:01]} 19. b4 {[%emt 0:00:14]} f4 {[%emt 0:00:57]} 20. Bd2 {[%emt 0:00:09]} e4 {[%emt 0:00:00]} 21. Nd4 {[%emt 0:00:02]} Ne5 {[%emt 0:00:19]} 22. b5 {[%emt 0:00:02]} Rfc8 {[%emt 0:00:43]} 23. c6 {[%emt 0:00:05]} bxc6 {[%emt 0:00:01]} 24. b6 {[%emt 0:00:01]} Rcb8 {[%emt 0:00:25]} 25. a5 {[%emt 0:00:02]} c5 {[%emt 0:00:00]} 26. Nb3 {[%emt 0:00:02]} c4 {[%emt 0:00:03]} 27. Nc5 {[%emt 0:00:13]} Ng7 {[%emt 0:00:22]} 28. Red1 {[%emt 0:00:13]} Bc6 {[%emt 0:00:07]} 29. Bc1 {[%emt 0:00:16]} Kf7 {[%emt 0:00:02]} 30. Ba3 {[%emt 0:00:04]} Ne6 {[%emt 0:00:04]} 31. Be2 {[%emt 0:00:07]} f3 {[%emt 0:00:08]} 32. gxf3 {[%emt 0:00:27]} Nf4 {[%emt 0:00:08]} 33. Bf1 {[%emt 0:00:03]} Nxf3+ {[%emt 0:00:17]} 34. Kh1 {[%emt 0:00:01]} Nd3 {[%emt 0:00:42]} 35. Ra2 {[%emt 0:00:10]} g4 {[%emt 0:00:09]} 36. Bg2 {[%emt 0:00:29]} Nxc5 {[%emt 0:00:14]} 37. Bxc5 {[%emt 0:00:01]} Ke6 {[%emt 0:00:00]} 38. Bxf3 {[%emt 0:00:11]} gxf3 {[%emt 0:00:01]} 39. Rg1 {[%emt 0:00:02]} Rg8 {[%emt 0:00:23]} 40. Raa1 {[%emt 0:00:02]} Bb7 {[%emt 0:00:04]} 41. Be3 {[%emt 0:00:14]} h5 {[%emt 0:00:02]} 42. h4 {[%emt 0:00:01]} Rg4 {[%emt 0:00:11]} 43. Rxg4 {[%emt 0:00:01]} hxg4 {[%emt 0:00:00]} 44. Kh2 {[%emt 0:00:06]} Kf5 {[%emt 0:00:04]} 45. Kg3 {[%emt 0:00:07]} Rh8 {[%emt 0:00:00]} 46. Rh1 {[%emt 0:00:03]} Rh5 {[%emt 0:00:01]} 47. Bd4 {[%emt 0:00:04]} Rh7 {[%emt 0:00:36]} 48. h5 {[%emt 0:00:04]} Bc8 {[%emt 0:00:04]} 49. h6 {[%emt 0:00:04]} Kg6 {[%emt 0:00:01]} 50. Bg7 {[%emt 0:00:04]} e3 {[%emt 0:00:14]} 51. fxe3 {[%emt 0:00:02]} Kf5 {[%emt 0:00:01]} 52. Rh5+ {[%emt 0:00:36]} Ke4 {[%emt 0:00:01]} 53. Re5+ {[%emt 0:00:02]} Kd3 {[%emt 0:00:00]} 54. Re8 {[%emt 0:00:00]} Bb7 {[%emt 0:00:06]} 55. Re7 {[%emt 0:00:02]} Bc6 {[%emt 0:00:06]} 56. Rc7 {[%emt 0:00:01]} Ba8 {[%emt 0:00:05]} 57. Ra7 {[%emt 0:00:05]} Bc6 {[%emt 0:00:01]} 58. Rc7 {[%emt 0:00:05]} Ba8 {[%emt 0:00:00]} 59. b7 {[%emt 0:00:01]} Bxb7 {[%emt 0:00:01]} 60. Rxb7 {[%emt 0:00:00]} Ke2 {[%emt 0:00:00]} 61. Rf7 {[%emt 0:00:06]} Kxe3 {[%emt 0:00:01]} 62. Bd4+ {[%emt 0:00:01]} 1-0

[Event "CCT Chessable Masters Play-In 2025"]
[Site "Online"]
[Date "2025.02.17"]
[Round "3.42"]
[White "Murzin, Volodar"]
[Black "Svidler, Peter"]
[Result "1/2-1/2"]
[ECO "D00"]
[WhiteElo "2657"]
[BlackElo "2696"]
[PlyCount "65"]
[EventDate "2025.02.13"]
[EventType "swiss"]
[EventCountry "NET"]
[TimeControl "600"]
[WhiteClock "0:01:09"]
[BlackClock "0:02:07"]

1. d4 {[%emt 0:00:01]} Nf6 {[%emt 0:00:03]} 2. Nf3 {[%emt 0:00:00]} g6 {[%emt 0:00:02]} 3. Bg5 {[%emt 0:00:06]} Bg7 {[%emt 0:00:01]} 4. Nc3 {[%emt 0:00:03]} d5 {[%emt 0:00:19]} 5. h4 {[%emt 0:00:23]} h6 {[%emt 0:00:40]} 6. Bf4 {[%emt 0:00:11]} c5 {[%emt 0:00:18]} 7. e3 {[%emt 0:00:19]} Bg4 {[%emt 0:00:48]} 8. Bxb8 {[%emt 0:00:39]} Rxb8 {[%emt 0:00:11]} 9. Bb5+ {[%emt 0:00:00]} Kf8 {[%emt 0:00:10]} 10. Be2 {[%emt 0:00:52]} cxd4 {[%emt 0:00:17]} 11. exd4 {[%emt 0:00:12]} Ne4 {[%emt 0:00:07]} 12. Ne5 {[%emt 0:00:02]} Nxc3 {[%emt 0:00:13]} 13. bxc3 {[%emt 0:00:03]} Bxe2 {[%emt 0:00:04]} 14. Qxe2 {[%emt 0:00:00]} Qc7 {[%emt 0:00:25]} 15. O-O {[%emt 0:00:30]} h5 {[%emt 0:00:40]} 16. Qf3 {[%emt 0:01:56]} Bxe5 {[%emt 0:00:05]} 17. dxe5 {[%emt 0:00:01]} Qxe5 {[%emt 0:00:29]} 18. Rfe1 {[%emt 0:00:01]} Qf5 {[%emt 0:00:04]} 19. Qe3 {[%emt 0:00:13]} Qf6 {[%emt 0:00:06]} 20. Rad1 {[%emt 0:00:26]} Rc8 {[%emt 0:01:47]} 21. Rd4 {[%emt 0:00:29]} Rc6 {[%emt 0:00:14]} 22. Qd2 {[%emt 0:01:15]} Kg7 {[%emt 0:00:16]} 23. Rxd5 {[%emt 0:00:29]} Rhc8 {[%emt 0:00:08]} 24. Rd7 {[%emt 0:00:04]} Rxc3 {[%emt 0:00:06]} 25. Rexe7 {[%emt 0:00:05]} Rxc2 {[%emt 0:00:10]} 26. Rxf7+ {[%emt 0:00:07]} Qxf7 {[%emt 0:00:00]} 27. Qd4+ {[%emt 0:00:01]} Kg8 {[%emt 0:00:03]} 28. Rxf7 {[%emt 0:00:00]} Kxf7 {[%emt 0:00:01]} 29. Qd5+ {[%emt 0:00:06]} Kg7 {[%emt 0:00:03]} 30. Qe5+ {[%emt 0:00:15]} Kf7 {[%emt 0:00:02]} 31. Qd5+ {[%emt 0:00:01]} Kg7 {[%emt 0:00:01]} 32. Qe5+ {[%emt 0:00:01]} Kf7 {[%emt 0:00:00]} 33. Qd5+ {[%emt 0:00:00]} 1/2-1/2

[Event "CCT Chessable Masters Play-In 2025"]
[Site "Online"]
[Date "2025.02.17"]
[Round "3.43"]
[White "Harikrishna, Pentala"]
[Black "Moroni, Luca Jr"]
[Result "1/2-1/2"]
[ECO "C72"]
[WhiteElo "2695"]
[BlackElo "2552"]
[PlyCount "122"]
[EventDate "2025.02.13"]
[EventType "swiss"]
[EventCountry "NET"]
[TimeControl "600"]
[WhiteClock "0:01:08"]
[BlackClock "0:00:15"]

1. e4 {[%emt 0:00:01]} e5 {[%emt 0:00:06]} 2. Nf3 {[%emt 0:00:00]} Nc6 {[%emt 0:00:01]} 3. Bb5 {[%emt 0:00:02]} a6 {[%emt 0:00:04]} 4. Ba4 {[%emt 0:00:00]} d6 {[%emt 0:00:07]} 5. O-O {[%emt 0:00:05]} Bd7 {[%emt 0:00:02]} 6. c4 {[%emt 0:00:04]} g6 {[%emt 0:00:08]} 7. Nc3 {[%emt 0:00:04]} Bg7 {[%emt 0:00:02]} 8. Bxc6 {[%emt 0:00:09]} bxc6 {[%emt 0:00:07]} 9. d4 {[%emt 0:00:01]} exd4 {[%emt 0:00:03]} 10. Nxd4 {[%emt 0:00:01]} c5 {[%emt 0:00:02]} 11. Nf3 {[%emt 0:00:06]} Ne7 {[%emt 0:00:04]} 12. Bf4 {[%emt 0:00:07]} O-O {[%emt 0:00:27]} 13. e5 {[%emt 0:00:03]} Nf5 {[%emt 0:00:22]} 14. Qd2 {[%emt 0:01:06]} Be6 {[%emt 0:00:34]} 15. b3 {[%emt 0:00:09]} Nd4 {[%emt 0:00:45]} 16. Nxd4 {[%emt 0:00:01]} cxd4 {[%emt 0:00:01]} 17. Qxd4 {[%emt 0:00:01]} dxe5 {[%emt 0:00:03]} 18. Qxd8 {[%emt 0:00:01]} Rfxd8 {[%emt 0:00:33]} 19. Be3 {[%emt 0:00:02]} f5 {[%emt 0:00:02]} 20. Rad1 {[%emt 0:00:12]} h6 {[%emt 0:01:06]} 21. f3 {[%emt 0:00:22]} g5 {[%emt 0:00:05]} 22. Na4 {[%emt 0:00:08]} f4 {[%emt 0:00:17]} 23. Bf2 {[%emt 0:00:07]} g4 {[%emt 0:00:02]} 24. Nc5 {[%emt 0:00:11]} Bf5 {[%emt 0:00:01]} 25. Bh4 {[%emt 0:01:05]} Rd4 {[%emt 0:00:43]} 26. Rxd4 {[%emt 0:00:02]} exd4 {[%emt 0:00:01]} 27. fxg4 {[%emt 0:00:01]} Bc2 {[%emt 0:00:13]} 28. Ne6 {[%emt 0:00:15]} d3 {[%emt 0:00:06]} 29. Nxg7 {[%emt 0:00:01]} d2 {[%emt 0:00:28]} 30. Ne6 {[%emt 0:00:10]} c6 {[%emt 0:00:47]} 31. Nd4 {[%emt 0:00:26]} d1=Q {[%emt 0:00:05]} 32. Rxd1 {[%emt 0:00:01]} Bxd1 {[%emt 0:00:00]} 33. h3 {[%emt 0:00:03]} Re8 {[%emt 0:00:12]} 34. Nxc6 {[%emt 0:00:05]} Re2 {[%emt 0:00:07]} 35. c5 {[%emt 0:00:29]} Rxa2 {[%emt 0:00:32]} 36. Nd4 {[%emt 0:00:01]} Bc2 {[%emt 0:00:22]} 37. c6 {[%emt 0:00:14]} Be4 {[%emt 0:00:02]} 38. c7 {[%emt 0:00:01]} Bb7 {[%emt 0:00:02]} 39. Nf3 {[%emt 0:01:25]} Rb2 {[%emt 0:00:14]} 40. Be1 {[%emt 0:00:08]} Rxb3 {[%emt 0:00:05]} 41. Bd2 {[%emt 0:00:01]} Rb2 {[%emt 0:00:11]} 42. Kf1 {[%emt 0:00:18]} Rc2 {[%emt 0:00:02]} 43. Bxf4 {[%emt 0:00:03]} a5 {[%emt 0:00:01]} 44. Nd4 {[%emt 0:00:07]} Rc4 {[%emt 0:00:03]} 45. Be5 {[%emt 0:00:05]} a4 {[%emt 0:00:01]} 46. Nf5 {[%emt 0:00:02]} a3 {[%emt 0:00:04]} 47. Nd6 {[%emt 0:00:00]} Rxc7 {[%emt 0:00:02]} 48. Nf5 {[%emt 0:00:05]} Rc2 {[%emt 0:00:02]} 49. Nxh6+ {[%emt 0:00:12]} Kh7 {[%emt 0:00:01]} 50. Nf7 {[%emt 0:00:00]} a2 {[%emt 0:00:06]} 51. h4 {[%emt 0:00:04]} Bxg2+ {[%emt 0:00:01]} 52. Ke1 {[%emt 0:00:05]} Bd5 {[%emt 0:00:01]} 53. Ng5+ {[%emt 0:00:04]} Kg6 {[%emt 0:00:01]} 54. Nh3 {[%emt 0:00:02]} Rc1+ {[%emt 0:00:02]} 55. Kd2 {[%emt 0:00:03]} a1=Q {[%emt 0:00:00]} 56. Bxa1 {[%emt 0:00:02]} Rxa1 {[%emt 0:00:00]} 57. Nf4+ {[%emt 0:00:00]} Kh6 {[%emt 0:00:01]} 58. Nxd5 {[%emt 0:00:04]} Rh1 {[%emt 0:00:01]} 59. Ne3 {[%emt 0:00:04]} Rxh4 {[%emt 0:00:02]} 60. Nf5+ {[%emt 0:00:01]} Kg5 {[%emt 0:00:00]} 61. Nxh4 {[%emt 0:00:00]} Kxg4 {[%emt 0:00:00]} 1/2-1/2

[Event "CCT Chessable Masters Play-In 2025"]
[Site "Online"]
[Date "2025.02.17"]
[Round "3.44"]
[White "Bartel, Mateusz"]
[Black "Hakobyan, Aram"]
[Result "1-0"]
[ECO "C26"]
[WhiteElo "2629"]
[BlackElo "2635"]
[PlyCount "187"]
[EventDate "2025.02.13"]
[EventType "swiss"]
[EventCountry "NET"]
[TimeControl "600"]
[WhiteClock "0:00:03"]

1. e4 {[%emt 0:00:01]} e5 {[%emt 0:00:02]} 2. Nc3 {[%emt 0:00:00]} Nf6 {[%emt 0:00:03]} 3. g3 {[%emt 0:00:01]} Bc5 {[%emt 0:00:02]} 4. Bg2 {[%emt 0:00:01]} d6 {[%emt 0:00:01]} 5. Nge2 {[%emt 0:00:07]} a5 {[%emt 0:00:04]} 6. d4 {[%emt 0:00:11]} exd4 {[%emt 0:00:01]} 7. Nxd4 {[%emt 0:00:00]} O-O {[%emt 0:00:03]} 8. h3 {[%emt 0:00:02]} Nc6 {[%emt 0:00:17]} 9. Nxc6 {[%emt 0:00:02]} bxc6 {[%emt 0:00:02]} 10. O-O {[%emt 0:00:00]} Re8 {[%emt 0:00:04]} 11. Re1 {[%emt 0:00:12]} Rb8 {[%emt 0:00:04]} 12. Na4 {[%emt 0:00:13]} Ba7 {[%emt 0:00:07]} 13. Bd2 {[%emt 0:00:09]} Rb5 {[%emt 0:00:34]} 14. Bc3 {[%emt 0:00:15]} Nd7 {[%emt 0:00:27]} 15. b3 {[%emt 0:00:57]} Qg5 {[%emt 0:00:20]} 16. Bd4 {[%emt 0:00:41]} Bxd4 {[%emt 0:00:18]} 17. Qxd4 {[%emt 0:00:00]} Nf6 {[%emt 0:00:02]} 18. Rad1 {[%emt 0:00:33]} Qh5 {[%emt 0:00:06]} 19. h4 {[%emt 0:00:22]} Ng4 {[%emt 0:00:16]} 20. f3 {[%emt 0:00:43]} Ne5 {[%emt 0:00:05]} 21. Qf2 {[%emt 0:00:04]} Rb8 {[%emt 0:00:51]} 22. f4 {[%emt 0:00:06]} Bg4 {[%emt 0:00:24]} 23. Rd2 {[%emt 0:00:21]} Nf3+ {[%emt 0:00:05]} 24. Bxf3 {[%emt 0:00:01]} Bxf3 {[%emt 0:00:00]} 25. Nc3 {[%emt 0:00:01]} Re7 {[%emt 0:00:12]} 26. Re3 {[%emt 0:00:09]} Bg4 {[%emt 0:00:00]} 27. f5 {[%emt 0:00:15]} Qh6 {[%emt 0:00:05]} 28. Qf4 {[%emt 0:00:03]} Qxf4 {[%emt 0:00:01]} 29. gxf4 {[%emt 0:00:00]} Bxf5 {[%emt 0:00:01]} 30. Kf2 {[%emt 0:00:09]} Rbe8 {[%emt 0:00:19]} 31. Rd4 {[%emt 0:00:02]} Bd7 {[%emt 0:00:10]} 32. Ra4 {[%emt 0:00:07]} f5 {[%emt 0:00:18]} 33. e5 {[%emt 0:00:20]} dxe5 {[%emt 0:00:05]} 34. Rxa5 {[%emt 0:00:02]} e4 {[%emt 0:00:27]} 35. Rc5 {[%emt 0:00:05]} Kf7 {[%emt 0:00:36]} 36. Nd1 {[%emt 0:00:10]} Rd8 {[%emt 0:00:16]} 37. Rg3 {[%emt 0:00:03]} g6 {[%emt 0:00:07]} 38. Ne3 {[%emt 0:00:01]} Be8 {[%emt 0:00:00]} 39. Ke1 {[%emt 0:00:03]} Kf6 {[%emt 0:00:24]} 40. a4 {[%emt 0:00:02]} Re6 {[%emt 0:00:06]} 41. a5 {[%emt 0:00:04]} Red6 {[%emt 0:00:03]} 42. Rg2 {[%emt 0:00:01]} Rb8 {[%emt 0:00:08]} 43. Rd2 {[%emt 0:00:36]} Ke7 {[%emt 0:00:26]} 44. a6 {[%emt 0:00:06]} Ra8 {[%emt 0:00:04]} 45. Ra5 {[%emt 0:00:03]} Bf7 {[%emt 0:00:05]} 46. b4 {[%emt 0:00:19]} Kd7 {[%emt 0:00:02]} 47. c4 {[%emt 0:00:01]} Rxd2 {[%emt 0:00:14]} 48. Kxd2 {[%emt 0:00:02]} Rd8 {[%emt 0:00:00]} 49. Ke1 {[%emt 0:00:44]} Kc8 {[%emt 0:00:01]} 50. b5 {[%emt 0:00:00]} Kb8 {[%emt 0:00:10]} 51. a7+ {[%emt 0:00:15]} Ka8 {[%emt 0:00:01]} 52. bxc6 {[%emt 0:00:01]} Rd6 {[%emt 0:00:01]} 53. c5 {[%emt 0:00:03]} Rxc6 {[%emt 0:00:31]} 54. Nc2 {[%emt 0:00:02]} Bc4 {[%emt 0:00:07]} 55. Nb4 {[%emt 0:00:11]} Re6 {[%emt 0:00:02]} 56. c6 {[%emt 0:00:04]} Rd6 {[%emt 0:00:04]} 57. Rc5 {[%emt 0:00:15]} Bf7 {[%emt 0:00:07]} 58. Ra5 {[%emt 0:00:02]} Be8 {[%emt 0:00:03]} 59. Ra6 {[%emt 0:00:04]} Rd4 {[%emt 0:00:03]} 60. Nc2 {[%emt 0:00:10]} Rc4 {[%emt 0:00:01]} 61. Kd2 {[%emt 0:00:02]} Rxc6 {[%emt 0:00:01]} 62. Ra5 {[%emt 0:00:00]} Rd6+ {[%emt 0:00:01]} 63. Ke3 {[%emt 0:00:01]} Rd3+ {[%emt 0:00:01]} 64. Ke2 {[%emt 0:00:01]} Rb3 {[%emt 0:00:05]} 65. Nd4 {[%emt 0:00:01]} Rb7 {[%emt 0:00:00]} 66. Ne6 {[%emt 0:00:02]} Bc6 {[%emt 0:00:06]} 67. Ke3 {[%emt 0:00:02]} Rxa7 {[%emt 0:00:02]} 68. Nxc7+ {[%emt 0:00:01]} Kb7 {[%emt 0:00:00]} 69. Rxa7+ {[%emt 0:00:00]} Kxa7 {[%emt 0:00:00]} 70. Ne6 {[%emt 0:00:00]} Kb6 {[%emt 0:00:00]} 71. Nf8 {[%emt 0:00:01]} Kc7 {[%emt 0:00:01]} 72. Nxh7 {[%emt 0:00:01]} Kd6 {[%emt 0:00:02]} 73. Ng5 {[%emt 0:00:00]} Be8 {[%emt 0:00:00]} 74. Nh3 {[%emt 0:00:01]} Ke7 {[%emt 0:00:01]} 75. Ng5 {[%emt 0:00:00]} Kf6 {[%emt 0:00:00]} 76. Nh3 {[%emt 0:00:01]} Bf7 {[%emt 0:00:00]} 77. Nf2 {[%emt 0:00:00]} Be8 {[%emt 0:00:00]} 78. Nh1 {[%emt 0:00:01]} Bf7 {[%emt 0:00:00]} 79. Ng3 {[%emt 0:00:00]} Kg7 {[%emt 0:00:00]} 80. Ne2 {[%emt 0:00:00]} Kh6 {[%emt 0:00:00]} 81. Ng3 {[%emt 0:00:01]} Bg8 {[%emt 0:00:00]} 82. Kd4 {[%emt 0:00:01]} Bf7 {[%emt 0:00:01]} 83. Ke3 {[%emt 0:00:00]} Bg8 {[%emt 0:00:00]} 84. h5 {[%emt 0:00:00]} Kg7 {[%emt 0:00:00]} 85. hxg6 {[%emt 0:00:01]} Kxg6 {[%emt 0:00:00]} 86. Ne2 {[%emt 0:00:00]} Kf6 {[%emt 0:00:01]} 87. Nd4 {[%emt 0:00:00]} Be6 {[%emt 0:00:00]} 88. Nc6 {[%emt 0:00:01]} Bf7 {[%emt 0:00:00]} 89. Nd4 {[%emt 0:00:00]} Bg6 {[%emt 0:00:00]} 90. Nb5 {[%emt 0:00:00]} Bf7 {[%emt 0:00:00]} 91. Nd4 {[%emt 0:00:00]} Bg6 {[%emt 0:00:00]} 92. Nc6 {[%emt 0:00:00]} Bf7 {[%emt 0:00:00]} 93. Ne5 {[%emt 0:00:00]} Bg6 94. Nd7+ {[%emt 0:00:01]} 1-0

[Event "CCT Chessable Masters Play-In 2025"]
[Site "Online"]
[Date "2025.02.17"]
[Round "3.45"]
[White "Paravyan, David"]
[Black "Akobian, Varuzhan"]
[Result "1-0"]
[ECO "C02"]
[WhiteElo "2621"]
[BlackElo "2564"]
[PlyCount "97"]
[EventDate "2025.02.13"]
[EventType "swiss"]
[EventCountry "NET"]
[TimeControl "600"]
[WhiteClock "0:02:18"]
[BlackClock "0:01:25"]

1. e4 {[%emt 0:00:02]} e6 {[%emt 0:00:03]} 2. d4 {[%emt 0:00:01]} d5 {[%emt 0:00:01]} 3. e5 {[%emt 0:00:02]} c5 {[%emt 0:00:01]} 4. c3 {[%emt 0:00:01]} Qb6 {[%emt 0:00:01]} 5. Nf3 {[%emt 0:00:02]} Nc6 {[%emt 0:00:01]} 6. a3 {[%emt 0:00:14]} c4 {[%emt 0:00:01]} 7. Nbd2 {[%emt 0:00:05]} Na5 {[%emt 0:00:01]} 8. Be2 {[%emt 0:00:11]} Bd7 {[%emt 0:00:01]} 9. Rb1 {[%emt 0:00:12]} Ne7 {[%emt 0:00:03]} 10. h4 {[%emt 0:00:03]} Qc7 {[%emt 0:00:02]} 11. h5 {[%emt 0:00:16]} h6 {[%emt 0:00:01]} 12. Nf1 {[%emt 0:00:46]} Nc8 {[%emt 0:00:03]} 13. Bf4 {[%emt 0:00:11]} Nb6 {[%emt 0:00:03]} 14. Qd2 {[%emt 0:00:02]} Be7 {[%emt 0:00:05]} 15. Bd1 {[%emt 0:00:05]} Ba4 {[%emt 0:00:03]} 16. Ne3 {[%emt 0:00:11]} Qc6 {[%emt 0:00:08]} 17. Bg3 {[%emt 0:00:32]} O-O-O {[%emt 0:00:03]} 18. Bh4 {[%emt 0:00:03]} Qd7 {[%emt 0:00:23]} 19. Bxe7 {[%emt 0:00:33]} Qxe7 {[%emt 0:00:02]} 20. Bxa4 {[%emt 0:00:01]} Nxa4 {[%emt 0:00:03]} 21. Qc2 {[%emt 0:00:04]} Nb6 {[%emt 0:00:01]} 22. Nd2 {[%emt 0:00:08]} Kb8 {[%emt 0:00:03]} 23. f4 {[%emt 0:00:10]} Rdg8 {[%emt 0:00:27]} 24. Nf3 {[%emt 0:00:18]} Qd7 {[%emt 0:00:31]} 25. f5 {[%emt 0:00:17]} Nc6 {[%emt 0:00:20]} 26. Nh4 {[%emt 0:00:19]} Re8 {[%emt 0:00:14]} 27. O-O {[%emt 0:00:28]} Qe7 {[%emt 0:00:45]} 28. f6 {[%emt 0:00:01]} gxf6 {[%emt 0:00:02]} 29. Rxf6 {[%emt 0:00:00]} Nd7 {[%emt 0:00:02]} 30. Rf4 {[%emt 0:00:19]} Qg5 {[%emt 0:00:08]} 31. Qf2 {[%emt 0:00:07]} Qxh5 {[%emt 0:00:23]} 32. Rxf7 {[%emt 0:00:25]} Ref8 {[%emt 0:00:14]} 33. Rf1 {[%emt 0:00:01]} Nd8 {[%emt 0:00:31]} 34. Rxf8 {[%emt 0:00:25]} Rxf8 {[%emt 0:00:02]} 35. Qg3 {[%emt 0:00:01]} Qe2 {[%emt 0:00:33]} 36. Rxf8 {[%emt 0:00:32]} Nxf8 {[%emt 0:00:02]} 37. Qf2 {[%emt 0:00:00]} Qxf2+ {[%emt 0:00:03]} 38. Kxf2 {[%emt 0:00:00]} Nf7 {[%emt 0:01:12]} 39. Kg3 {[%emt 0:00:03]} h5 {[%emt 0:00:21]} 40. Kf4 {[%emt 0:00:02]} Kc7 {[%emt 0:00:06]} 41. Nf1 {[%emt 0:00:05]} Kc6 {[%emt 0:00:24]} 42. Ng3 {[%emt 0:00:02]} Kb5 {[%emt 0:00:01]} 43. Ke3 {[%emt 0:00:13]} Ka4 {[%emt 0:00:02]} 44. Kd2 {[%emt 0:00:00]} Kb3 {[%emt 0:00:01]} 45. Kc1 {[%emt 0:00:01]} Nh7 {[%emt 0:00:11]} 46. Nxh5 {[%emt 0:00:02]} Nhg5 {[%emt 0:00:02]} 47. Nf4 {[%emt 0:00:02]} Nh6 {[%emt 0:00:03]} 48. Nf3 {[%emt 0:00:02]} Nf5 {[%emt 0:00:42]} 49. Nxg5 {[%emt 0:00:02]} 1-0